Workbook

Sheet Cover
B2: 3GPP TSG-RAN WG4 Meeting #94-e | J2: R4-2000309
B3: Online 24th February– 6th March, 2020
B5: Source: Samsung
B6: Title: Simulation results summary of BS demodulation requirement for LTE Rel-16 HST
B7: Agenda : 7.13.4.1
B8: Document for: Information
B11: Simualtion assumptions
B12: R4-1912777, WF on LTE BS demodulation requirements

Sheet Basic_Para
B2: Parameter | C2: Value
C3: Open space | D3: Tunnel for multi-antennas
C4: Bi-directional | D4: Bi-directional
B5: Ds | C5: 1000 m | D5: 300 m
B6: Dmin | C6: 50 m | D6: 2 m
B7: v | C7: 500 km/h | D7: 500 km/h
B8: fd | C8: 1944Hz
C9: If 70%ile of the max. throughput is not achievable with 1944Hz:
C10: Case 1: fallback to 1750Hz, or
C11: Case 2: accept %ile of max. throughput lower than 70%ile with 1944Hz
B16: Parameters | C16: Value
C17: Scenario 1 (Open space) | D17: Scenario 3 (Tunnel)
B18: CBW | C18: 1.4/3/5/10/15/20 MHz | D18: 1.4/3/5/10/15/20 MHz
B19: CP | C19: Normal | D19: Normal
B20: FRC | C20: A.3-2 to A.3-7 (QPSK 1/3) | D20: A.3-2 to A.3-7 (QPSK 1/3)
B21: Antenna configuration | C21: 1Tx2Rx | D21: 1Tx1Rx
B22: Reference receiver | C22: MRC | D22: MRC
B23: Noise estimation | C23: Practical | D23: Practical
B24: Time and frequency track | C24: Practical | D24: Practical
B25: Test metric | C25: 70%ile of the max. throughput | D25: 70%ile of the max. throughput
C26: 30%ile of the max. throughput | D26: 30%ile of the max. throughput
B27: NOTE: The configuration of PUCCH (format 2) is optional
B31: Number of TX antennas | C31: Number of RX antennas | D31: Propagation conditions and correlation matrix | E31: Frequency offset | F31: SNR [dB]
F32: Burst format 0 | G32: Burst format 1 | H32: Burst format 2 | I32: Burst format 3
B33: 1 | C33: 2 | D33: AWGN | E33: 1944Hz
C34: 4 | D34: AWGN | E34: 1944Hz
C35: 8 | D35: AWGN | E35: 1944Hz
B39: Burst format | C39: Ncs | D39: Logical sequence index | E39: v
B40: 0 | C40: 15 | D40: 30 | E40: 30
B41: 1 | C41: 100 | D41: 168 | E41: 20
B42: 2 | C42: 118 | D42: 204 | E42: 10
B43: 3 | C43: 137 | D43: 264 | E43: 0

Sheet PUSCH
G1: Samsung | I1: Ericcson | K1: Nokia | M1: Huawei | O1: XXXX | Q1: SPAN | S1: AVERAGE | U1: 36.104 | V1: 36.141 | X1: For imformation [0.5]dB additional margin | Y1: For imformation [1.0]dB additional margin | Z1: For imformation [1.5]dB additional margin | AB1: Reference HST Senario 1 HST Senario 3
A2: Scenario | B2: BW | C2: MCS | D2: Antenna configuration | E2: Doppler Value | F2: Test metric | G2: Ideal | H2: Impairment | I2: Ideal | J2: Impairment | K2: Ideal | L2: Impairment | M2: Ideal | N2: Impairment | O2: Ideal | P2: Impairment | Q2: Ideal | R2: Impairment | S2: Ideal | T2: Impairment | X2: 36.104 | Y2: 36.104 | Z2: 36.104 | AB2: Doppler Value | AC2: 36.104
A3: Open space | B3: 15kHz, 1.4MHz | C3: MCS6 QPSK 1/3 | D3: 1x2 | E3: 1944Hz | F3: 30% TP | G3: -7.2 | H3: =G3+2 -> -5.2 | I3: -8.32 | J3: -5.82 | M3: -7.21 | N3: -5.21 | Q3: =MAX(G3,I3,K3,M3,O3)-MIN(G3,I3,K3,M3,O3) -> 1.12 | R3: =MAX(H3,J3,L3,N3)-MIN(H3,J3,L3,N3) -> 0.62 | S3: =AVERAGE(G3,I3,K3,M3,O3) -> -7.576666667 | T3: =AVERAGE(H3,J3,L3,N3) -> -5.41 | U3: =T3 -> -5.41 | V3: =T3+0.3 -> -5.11 | X3: =U3+0.5 -> -4.91 | Y3: =U3+1 -> -4.41 | Z3: =U3+1.5 -> -3.91 | AB3: 1340 | AC3: -3.9
F4: 70% TP | G4: -2.5 | H4: =G4+2 -> -0.5 | I4: -3.76 | J4: -1.26 | M4: -3.86 | N4: -1.86 | Q4: =MAX(G4,I4,K4,M4,O4)-MIN(G4,I4,K4,M4,O4) -> 1.36 | R4: =MAX(H4,J4,L4,N4)-MIN(H4,J4,L4,N4) -> 1.36 | S4: =AVERAGE(G4,I4,K4,M4,O4) -> -3.373333333 | T4: =AVERAGE(H4,J4,L4,N4) -> -1.206666667 | U4: -1.206666667 | V4: =T4+0.3 -> -0.9066666667 | X4: =U4+0.5 -> -0.7066666667 | Y4: =U4+1 -> -0.2066666667 | Z4: =U4+1.5 -> 0.2933333333 | AC4: -0.6
B5: 15kHz, 3MHz | C5: MCS6 QPSK 1/3 | D5: 1x2 | F5: 30% TP | G5: -7.1 | H5: -5.1 | I5: -8.63 | J5: -6.13 | M5: -7.8 | N5: -5.8 | Q5: 1.53 | R5: =MAX(H5,J5,L5,N5)-MIN(H5,J5,L5,N5) -> 1.03 | S5: -7.843333333 | T5: =AVERAGE(H5,J5,L5,N5) -> -5.676666667 | U5: -5.676666667 | V5: -5.376666667 | X5: -5.176666667 | Y5: -4.676666667 | Z5: -4.176666667 | AC5: -4.5
F6: 70% TP | G6: -3 | H6: -1 | I6: -3.88 | J6: -1.38 | M6: -3.85 | N6: -1.85 | Q6: 0.88 | R6: 0.85 | S6: -3.576666667 | T6: -1.41 | U6: -1.41 | V6: -1.11 | X6: -0.91 | Y6: -0.41 | Z6: 0.09 | AC6: -1
B7: 15KHz, 5MHz | C7: MCS6 QPSK 1/3 | D7: 1x2 | F7: 30% TP | G7: -7.8 | H7: -5.8 | I7: -9.24 | J7: -6.74 | M7: -9.09 | N7: -7.09 | Q7: 1.44 | R7: 1.29 | S7: -8.71 | T7: -6.543333333 | U7: -6.543333333 | V7: -6.243333333 | X7: -6.043333333 | Y7: -5.543333333 | Z7: -5.043333333 | AC7: -5.1
F8: 70% TP | G8: -3.5 | H8: -1.5 | I8: -4.71 | J8: -2.21 | M8: -4.61 | N8: -2.61 | Q8: 1.21 | R8: 1.11 | S8: -4.273333333 | T8: -2.106666667 | U8: -2.106666667 | V8: -1.806666667 | X8: -1.606666667 | Y8: -1.106666667 | Z8: -0.6066666667 | AC8: -1.4
B9: 15KHz, 10MHz | C9: MCS6 QPSK 1/3 | D9: 1x2 | F9: 30% TP | G9: -7.8 | H9: -5.8 | I9: -8.69 | J9: -6.19 | M9: -8.32 | N9: -6.32 | Q9: 0.89 | R9: 0.52 | S9: -8.27 | T9: -6.103333333 | U9: -6.103333333 | V9: -5.803333333 | X9: -5.603333333 | Y9: -5.103333333 | Z9: -4.603333333 | AC9: -5.4
F10: 70% TP | G10: -3.3 | H10: -1.3 | I10: -3.9 | J10: -1.4 | M10: -3.97 | N10: -1.97 | Q10: 0.67 | R10: 0.67 | S10: -3.723333333 | T10: -1.556666667 | U10: -1.556666667 | V10: -1.256666667 | X10: -1.056666667 | Y10: -0.5566666667 | Z10: -0.05666666667 | AC10: -1.5
B11: 15KHz, 15MHz | C11: MCS6 QPSK 1/3 | D11: 1x2 | F11: 30% TP | G11: -7.9 | H11: -5.9 | I11: -9.2 | J11: -6.7 | M11: -9.2 | N11: -7.2 | Q11: 1.3 | R11: 1.3 | S11: -8.766666667 | T11: -6.6 | U11: -6.6 | V11: -6.3 | X11: -6.1 | Y11: -5.6 | Z11: -5.1 | AC11: -5.2
F12: 70% TP | G12: -3.45 | H12: -1.45 | I12: -4.69 | J12: -2.19 | M12: -4.6 | N12: -2.6 | Q12: 1.24 | R12: 1.15 | S12: -4.246666667 | T12: -2.08 | U12: -2.08 | V12: -1.78 | X12: -1.58 | Y12: -1.08 | Z12: -0.58 | AC12: -1.4
B13: 15KHz, 20MHz | C13: MCS6 QPSK 1/3 | D13: 1x2 | F13: 30% TP | G13: -7.9 | H13: -5.9 | I13: -8.68 | J13: -6.18 | M13: -8.4 | N13: -6.4 | Q13: 0.78 | R13: 0.5 | S13: -8.326666667 | T13: -6.16 | U13: -6.16 | V13: -5.86 | X13: -5.66 | Y13: -5.16 | Z13: -4.66 | AC13: -5.3
F14: 70% TP | G14: -3.75 | H14: -1.75 | I14: -3.84 | J14: -1.34 | M14: -3.74 | N14: -1.74 | Q14: 0.1 | R14: 0.41 | S14: -3.776666667 | T14: -1.61 | U14: -1.61 | V14: -1.31 | X14: -1.11 | Y14: -0.61 | Z14: -0.11 | AC14: -1.4
B15: 15kHz, 1.4MHz | C15: MCS6 QPSK 1/3 | D15: 1x2 | E15: 1750Hz | F15: 30% TP | G15: -7.2 | H15: -5.2 | I15: -8.35 | J15: -5.85 | K15: -7 | L15: -5 | M15: -7.11 | N15: -5.11 | Q15: 1.35 | R15: 0.85 | S15: -7.415 | T15: -5.29 | U15: -5.29 | V15: -4.99 | X15: -4.79 | Y15: -4.29 | Z15: -3.79 | AB15: 1340 | AC15: -3.9
F16: 70% TP | G16: -2.75 | H16: -0.75 | I16: -3.79 | J16: -1.29 | K16: -2.5 | L16: -0.5 | M16: -3.86 | N16: -1.86 | Q16: 1.36 | R16: 1.36 | S16: -3.225 | T16: -1.1 | U16: -1.1 | V16: -0.8 | X16: -0.6 | Y16: -0.1 | Z16: 0.4 | AC16: -0.6
B17: 15kHz, 3MHz | C17: MCS6 QPSK 1/3 | D17: 1x2 | F17: 30% TP | G17: -7.2 | H17: -5.2 | I17: -8.63 | J17: -6.13 | K17: -7.5 | L17: -5.5 | M17: -7.8 | N17: -5.8 | Q17: 1.43 | R17: 0.93 | S17: -7.7825 | T17: -5.6575 | U17: -5.6575 | V17: -5.3575 | X17: -5.1575 | Y17: -4.6575 | Z17: -4.1575 | AC17: -4.5
F18: 70% TP | G18: -3.15 | H18: -1.15 | I18: -3.87 | J18: -1.37 | K18: -2.4 | L18: -0.4 | M18: -3.85 | N18: -1.85 | Q18: 1.47 | R18: 1.45 | S18: -3.3175 | T18: -1.1925 | U18: -1.1925 | V18: -0.8925 | X18: -0.6925 | Y18: -0.1925 | Z18: 0.3075 | AC18: -1
B19: 15KHz, 5MHz | C19: MCS6 QPSK 1/3 | D19: 1x2 | F19: 30% TP | G19: -7.8 | H19: -5.8 | I19: -9.23 | J19: -6.73 | K19: -7.4 | L19: -5.4 | M19: -9.16 | N19: -7.16 | Q19: 1.83 | R19: 1.76 | S19: -8.3975 | T19: -6.2725 | U19: -6.2725 | V19: -5.9725 | X19: -5.7725 | Y19: -5.2725 | Z19: -4.7725 | AC19: -5.1
F20: 70% TP | G20: -3.7 | H20: -1.7 | I20: -4.71 | J20: -2.21 | K20: -2 | L20: 0 | M20: -4.61 | N20: -2.61 | Q20: 2.71 | R20: 2.61 | S20: -3.755 | T20: -1.63 | U20: -1.63 | V20: -1.33 | X20: -1.13 | Y20: -0.63 | Z20: -0.13 | AC20: -1.4
B21: 15KHz, 10MHz | C21: MCS6 QPSK 1/3 | D21: 1x2 | F21: 30% TP | G21: -7.8 | H21: -5.8 | I21: -8.7 | J21: -6.2 | K21: -7.4 | L21: -5.4 | M21: -8.24 | N21: -6.24 | Q21: 1.3 | R21: 0.84 | S21: -8.035 | T21: -5.91 | U21: -5.91 | V21: -5.61 | X21: -5.41 | Y21: -4.91 | Z21: -4.41 | AC21: -5.4
F22: 70% TP | G22: -3.4 | H22: -1.4 | I22: -3.89 | J22: -1.39 | K22: -2 | L22: 0 | M22: -3.98 | N22: -1.98 | Q22: 1.98 | R22: 1.98 | S22: -3.3175 | T22: -1.1925 | U22: -1.1925 | V22: -0.8925 | X22: -0.6925 | Y22: -0.1925 | Z22: 0.3075 | AC22: -1.5
B23: 15KHz, 15MHz | C23: MCS6 QPSK 1/3 | D23: 1x2 | F23: 30% TP | G23: -7.9 | H23: -5.9 | I23: -9.18 | J23: -6.68 | K23: -7.5 | L23: -5.5 | M23: -9.26 | N23: -7.26 | Q23: 1.76 | R23: 1.76 | S23: -8.46 | T23: -6.335 | U23: -6.335 | V23: -6.035 | X23: -5.835 | Y23: -5.335 | Z23: -4.835 | AC23: -5.2
F24: 70% TP | G24: -3.5 | H24: -1.5 | I24: -4.69 | J24: -2.19 | K24: -2 | L24: 0 | M24: -4.6 | N24: -2.6 | Q24: 2.69 | R24: 2.6 | S24: -3.6975 | T24: -1.5725 | U24: -1.5725 | V24: -1.2725 | X24: -1.0725 | Y24: -0.5725 | Z24: -0.0725 | AC24: -1.4
B25: 15KHz, 20MHz | C25: MCS6 QPSK 1/3 | D25: 1x2 | F25: 30% TP | G25: -7.9 | H25: -5.9 | I25: -8.67 | J25: -6.17 | K25: -8 | L25: -6 | M25: -8.37 | N25: -6.37 | Q25: 0.77 | R25: 0.47 | S25: -8.235 | T25: -6.11 | U25: -6.11 | V25: -5.81 | X25: -5.61 | Y25: -5.11 | Z25: -4.61 | AC25: -5.3
F26: 70% TP | G26: -4.1 | H26: -2.1 | I26: -3.84 | J26: -1.34 | K26: -2 | L26: 0 | M26: -3.74 | N26: -1.74 | Q26: 2.1 | R26: 2.1 | S26: -3.42 | T26: -1.295 | U26: -1.295 | V26: -0.995 | X26: -0.795 | Y26: -0.295 | Z26: 0.205 | AC26: -1.4
A27: Tunnel for multi-antenna | B27: 15kHz, 1.4MHz | C27: MCS6 QPSK 1/3 | D27: 1x1 | E27: 1944Hz | F27: 30% TP | G27: -3.7 | H27: -1.7 | I27: -5.14 | J27: -2.64 | M27: -4.97 | N27: -2.97 | Q27: 1.44 | R27: =MAX(H27,J27,L27,N27)-MIN(H27,J27,L27,N27) -> 1.27 | S27: -4.603333333 | T27: -2.436666667 | U27: -2.436666667 | V27: -2.136666667 | X27: -1.936666667 | Y27: -1.436666667 | Z27: -0.9366666667 | AB27: 1150 | AC27: -1.5
F28: 70% TP | G28: 0.6 | H28: 2.6 | I28: -0.77 | J28: 1.73 | M28: -0.85 | N28: 1.15 | Q28: 1.45 | R28: =MAX(H28,J28,L28,N28)-MIN(H28,J28,L28,N28) -> 1.45 | S28: -0.34 | T28: 1.826666667 | U28: 1.826666667 | V28: 2.126666667 | X28: 2.326666667 | Y28: 2.826666667 | Z28: 3.326666667 | AC28: 1.9
B29: 15kHz, 3MHz | C29: MCS6 QPSK 1/3 | D29: 1x1 | F29: 30% TP | G29: -4.3 | H29: -2.3 | I29: -5.57 | J29: -3.07 | M29: -5.11 | N29: -3.11 | Q29: 1.27 | R29: 0.81 | S29: -4.993333333 | T29: -2.826666667 | U29: -2.826666667 | V29: -2.526666667 | X29: -2.326666667 | Y29: -1.826666667 | Z29: -1.326666667 | AC29: -2.1
F30: 70% TP | G30: 0.6 | H30: 2.6 | I30: -0.88 | J30: 1.62 | M30: -0.79 | N30: 1.21 | Q30: 1.48 | R30: 1.39 | S30: -0.3566666667 | T30: 1.81 | U30: 1.81 | V30: 2.11 | X30: 2.31 | Y30: 2.81 | Z30: 3.31 | AC30: 1.6
B31: 15KHz, 5MHz | C31: MCS6 QPSK 1/3 | D31: 1x1 | F31: 30% TP | G31: -4.8 | H31: -2.8 | I31: -6.18 | J31: -3.68 | M31: -6.16 | N31: -4.16 | Q31: 1.38 | R31: 1.36 | S31: -5.713333333 | T31: -3.546666667 | U31: -3.546666667 | V31: -3.246666667 | X31: -3.046666667 | Y31: -2.546666667 | Z31: -2.046666667 | AC31: -2.6
F32: 70% TP | G32: -0.4 | H32: 1.6 | I32: -1.7 | J32: 0.8 | M32: -1.57 | N32: 0.43 | Q32: 1.3 | R32: 1.17 | S32: -1.223333333 | T32: 0.9433333333 | U32: 0.9433333333 | V32: 1.243333333 | X32: 1.443333333 | Y32: 1.943333333 | Z32: 2.443333333 | AC32: 1.3
B33: 15KHz, 10MHz | C33: MCS6 QPSK 1/3 | D33: 1x1 | F33: 30% TP | G33: -4.8 | H33: -2.8 | I33: -5.65 | J33: -3.15 | M33: -5.29 | N33: -3.29 | Q33: 0.85 | R33: 0.49 | S33: -5.246666667 | T33: -3.08 | U33: -3.08 | V33: -2.78 | X33: -2.58 | Y33: -2.08 | Z33: -1.58 | AC33: -2.7
F34: 70% TP | G34: 0.5 | H34: 2.5 | I34: -0.87 | J34: 1.63 | M34: -0.89 | N34: 1.11 | Q34: 1.39 | R34: 1.39 | S34: -0.42 | T34: 1.746666667 | U34: 1.746666667 | V34: 2.046666667 | X34: 2.246666667 | Y34: 2.746666667 | Z34: 3.246666667 | AC34: 1.2
B35: 15KHz, 15MHz | C35: MCS6 QPSK 1/3 | D35: 1x1 | F35: 30% TP | G35: -4.8 | H35: -2.8 | I35: -6.15 | J35: -3.65 | M35: -6.24 | N35: -4.24 | Q35: 1.44 | R35: 1.44 | S35: -5.73 | T35: -3.563333333 | U35: -3.563333333 | V35: -3.263333333 | X35: -3.063333333 | Y35: -2.563333333 | Z35: -2.063333333 | AC35: -2.7
F36: 70% TP | G36: -0.35 | H36: 1.65 | I36: -1.66 | J36: 0.84 | M36: -1.55 | N36: 0.45 | Q36: 1.31 | R36: 1.2 | S36: -1.186666667 | T36: 0.98 | U36: 0.98 | V36: 1.28 | X36: 1.48 | Y36: 1.98 | Z36: 2.48 | AC36: 1.2
B37: 15KHz, 20MHz | C37: MCS6 QPSK 1/3 | D37: 1x1 | F37: 30% TP | G37: -4.9 | H37: -2.9 | I37: -5.63 | J37: -3.13 | M37: -5.27 | N37: -3.27 | Q37: 0.73 | R37: 0.37 | S37: -5.266666667 | T37: -3.1 | U37: -3.1 | V37: -2.8 | X37: -2.6 | Y37: -2.1 | Z37: -1.6 | AC37: -2.7
F38: 70% TP | G38: -0.4 | H38: 1.6 | I38: -0.83 | J38: 1.67 | M38: -0.67 | N38: 1.33 | Q38: 0.43 | R38: 0.34 | S38: -0.6333333333 | T38: 1.533333333 | U38: 1.533333333 | V38: 1.833333333 | X38: 2.033333333 | Y38: 2.533333333 | Z38: 3.033333333 | AC38: 1.2
B39: 15kHz, 1.4MHz | C39: MCS6 QPSK 1/3 | D39: 1x1 | E39: 1750Hz | F39: 30% TP | G39: -3.9 | H39: -1.9 | I39: -5.3 | J39: -2.8 | K39: -5 | L39: -3 | M39: -5.16 | N39: -3.16 | Q39: 1.4 | R39: 1.26 | S39: -4.84 | T39: -2.715 | U39: -2.715 | V39: -2.415 | X39: -2.215 | Y39: -1.715 | Z39: -1.215 | AB39: 1150 | AC39: -1.5
F40: 70% TP | G40: 0.55 | H40: 2.55 | I40: -0.8 | J40: 1.7 | K40: -0.46 | L40: 1.54 | M40: -0.85 | N40: 1.15 | Q40: 1.4 | R40: 1.4 | S40: -0.39 | T40: 1.735 | U40: 1.735 | V40: 2.035 | X40: 2.235 | Y40: 2.735 | Z40: 3.235 | AC40: 1.9
B41: 15kHz, 3MHz | C41: MCS6 QPSK 1/3 | D41: 1x1 | F41: 30% TP | G41: -4.5 | H41: -2.5 | I41: -5.57 | J41: -3.07 | K41: -5.1 | L41: -3.1 | M41: -5.07 | N41: -3.07 | Q41: 1.07 | R41: 0.6 | S41: -5.06 | T41: -2.935 | U41: -2.935 | V41: -2.635 | X41: -2.435 | Y41: -1.935 | Z41: -1.435 | AC41: -2.1
F42: 70% TP | G42: 0.35 | H42: 2.35 | I42: -0.87 | J42: 1.63 | K42: -0.35 | L42: 1.65 | M42: -0.8 | N42: 1.2 | Q42: 1.22 | R42: 1.15 | S42: -0.4175 | T42: 1.7075 | U42: 1.7075 | V42: 2.0075 | X42: 2.2075 | Y42: 2.7075 | Z42: 3.2075 | AC42: 1.6
B43: 15KHz, 5MHz | C43: MCS6 QPSK 1/3 | D43: 1x1 | F43: 30% TP | G43: -4.8 | H43: -2.8 | I43: -6.16 | J43: -3.66 | K43: -6 | L43: -4 | M43: -6.22 | N43: -4.22 | Q43: 1.42 | R43: 1.42 | S43: -5.795 | T43: -3.67 | U43: -3.67 | V43: -3.37 | X43: -3.17 | Y43: -2.67 | Z43: -2.17 | AC43: -2.6
F44: 70% TP | G44: -0.5 | H44: 1.5 | I44: -1.7 | J44: 0.8 | K44: -0.34 | L44: 1.66 | M44: -1.57 | N44: 0.43 | Q44: 1.36 | R44: 1.23 | S44: -1.0275 | T44: 1.0975 | U44: 1.0975 | V44: 1.3975 | X44: 1.5975 | Y44: 2.0975 | Z44: 2.5975 | AC44: 1.3
B45: 15KHz, 10MHz | C45: MCS6 QPSK 1/3 | D45: 1x1 | F45: 30% TP | G45: -4.8 | H45: -2.8 | I45: -5.64 | J45: -3.14 | K45: -5 | L45: -3 | M45: -5.3 | N45: -3.3 | Q45: 0.84 | R45: 0.5 | S45: -5.185 | T45: -3.06 | U45: -3.06 | V45: -2.76 | X45: -2.56 | Y45: -2.06 | Z45: -1.56 | AC45: -2.7
F46: 70% TP | G46: 0 | H46: 2 | I46: -0.88 | J46: 1.62 | K46: -0.1 | L46: 1.9 | M46: -0.87 | N46: 1.13 | Q46: 0.88 | R46: 0.87 | S46: -0.4625 | T46: 1.6625 | U46: 1.6625 | V46: 1.9625 | X46: 2.1625 | Y46: 2.6625 | Z46: 3.1625 | AC46: 1.2
B47: 15KHz, 15MHz | C47: MCS6 QPSK 1/3 | D47: 1x1 | F47: 30% TP | G47: -4.8 | H47: -2.8 | I47: -6.14 | J47: -3.64 | K47: -6.2 | L47: -4.2 | M47: -6.24 | N47: -4.24 | Q47: 1.44 | R47: 1.44 | S47: -5.845 | T47: -3.72 | U47: -3.72 | V47: -3.42 | X47: -3.22 | Y47: -2.72 | Z47: -2.22 | AC47: -2.7
F48: 70% TP | G48: -0.4 | H48: 1.6 | I48: -1.67 | J48: 0.83 | K48: 0.1 | L48: 2.1 | M48: -1.56 | N48: 0.44 | Q48: 1.77 | R48: 1.66 | S48: -0.8825 | T48: 1.2425 | U48: 1.2425 | V48: 1.5425 | X48: 1.7425 | Y48: 2.2425 | Z48: 2.7425 | AC48: 1.2
B49: 15KHz, 20MHz | C49: MCS6 QPSK 1/3 | D49: 1x1 | F49: 30% TP | G49: -4.9 | H49: -2.9 | I49: -5.63 | J49: -3.13 | K49: -5.4 | L49: -3.4 | M49: -5.27 | N49: -3.27 | Q49: 0.73 | R49: 0.5 | S49: -5.3 | T49: -3.175 | U49: -3.175 | V49: -2.875 | X49: -2.675 | Y49: -2.175 | Z49: -1.675 | AC49: -2.7
F50: 70% TP | G50: -0.8 | H50: 1.2 | I50: -0.83 | J50: 1.67 | K50: 0.9 | L50: 2.9 | M50: -0.67 | N50: 1.33 | Q50: 1.73 | R50: 1.7 | S50: -0.35 | T50: 1.775 | U50: 1.775 | V50: 2.075 | X50: 2.275 | Y50: 2.775 | Z50: 3.275 | AC50: 1.2

Sheet PRACH
I1: Samsung | K1: Ericcson | M1: Nokia | O1: Huawei | Q1: XXXX | S1: SPAN | U1: AVERAGE | W1: 36.104 | X1: 36.141 | Z1: Option 1 SNR values that are smaller or far greater than for 1875Hz are excluded | AA1: Option 2 [0.5]dB additional margin | AC1: Reference Restricted set type B with 1875Hz frequency offset
A2: Format | B2: Propagation channel | C2: Ncs | D2: Logical sequence index | E2: v | F2: Antenna configuration | G2: Frequency offset | H2: Test metric | I2: Ideal | J2: Impairment | K2: Ideal | L2: Impairment | M2: Ideal | N2: Impairment | O2: Ideal | P2: Impairment | Q2: Ideal | R2: Impairment | S2: Ideal | T2: Impairment | U2: Ideal | V2: Impairment | Z2: 36.104 | AA2: 36.104 | AC2: Frequency offset | AD2: 36.104
A3: Format0 | B3: AWGN | C3: 15 | D3: 30 | E3: 30 | F3: 1x2 | G3: 1944Hz | H3: 1% miss detection | I3: -13.78 | J3: -11.78 | K3: -14.76 | L3: -12.26 | M3: -14.4 | N3: -11.8 | O3: -11.5 | P3: -9.15 | S3: =MAX(I3,K3,M3,O3)-MIN(I3,K3,M3,O3) -> 3.26 | T3: =MAX(J3,L3,N3,P3)-MIN(J3,L3,N3,P3) -> 3.11 | U3: =AVERAGE(I3,K3,M3,O3) -> -13.61 | V3: =AVERAGE(J3,L3,N3,P3) -> -11.2475 | W3: =V3 -> -11.2475 | X3: =V3+0.3 -> -10.9475 | Z3: -10.91 | AA3: =W3+0.5 -> -10.7475 | AC3: 1875Hz | AD3: -11.8
A4: Format0 | B4: AWGN | C4: 15 | D4: 30 | E4: 30 | F4: 1x4 | H4: 1% miss detection | I4: -16.22 | J4: -14.22 | K4: -17.22 | L4: -14.72 | M4: -16.8 | N4: -14.2 | O4: -13.5 | P4: -11.5 | S4: =MAX(I4,K4,M4,O4)-MIN(I4,K4,M4,O4) -> 3.72 | T4: =MAX(J4,L4,N4,P4)-MIN(J4,L4,N4,P4) -> 3.22 | U4: =AVERAGE(I4,K4,M4,O4) -> -15.935 | V4: =AVERAGE(J4,L4,N4,P4) -> -13.66 | W4: =V4 -> -13.66 | X4: =V4+0.3 -> -13.36 | Z4: -12.85 | AA4: =W4+0.5 -> -13.16 | AD4: -14.2
A5: Format0 | B5: AWGN | C5: 15 | D5: 30 | E5: 30 | F5: 1x8 | H5: 1% miss detection | I5: -18.48 | J5: -16.48 | K5: -19.5 | L5: -17 | M5: -18.9 | N5: -16.1 | O5: -16.48 | P5: -14.68 | S5: 3.02 | T5: 2.32 | U5: -18.34 | V5: -16.065 | W5: -16.065 | X5: -15.765 | Z5: -15.39 | AA5: -15.565 | AD5: -16.3
A6: Format1 | B6: AWGN | C6: 100 | D6: 168 | E6: 20 | F6: 1x2 | H6: 1% miss detection | I6: -13.43 | J6: -11.43 | K6: -14.5 | L6: -12 | M6: -14.4 | N6: -11.4 | O6: -13.7 | P6: -11.7 | S6: 1.07 | T6: 0.6 | U6: -14.0075 | V6: -11.6325 | W6: -11.6325 | X6: -11.3325 | Z6: -11.4 | AA6: -11.1325 | AD6: -11.4
A7: Format1 | B7: AWGN | C7: 100 | D7: 168 | E7: 20 | F7: 1x4 | H7: 1% miss detection | I7: -15.89 | J7: -13.89 | K7: -16.97 | L7: -14.47 | M7: -16.8 | N7: -13.8 | O7: -15.81 | P7: -13.81 | S7: 1.16 | T7: 0.67 | U7: -16.3675 | V7: -13.9925 | W7: =V7 -> -13.9925 | X7: -13.6925 | Z7: -13.8 | AA7: -13.4925 | AD7: -13.8
A8: Format1 | B8: AWGN | C8: 100 | D8: 168 | E8: 20 | F8: 1x8 | H8: 1% miss detection | I8: -18.19 | J8: -16.19 | K8: -19.24 | L8: -16.74 | M8: -19.1 | N8: -15.9 | O8: -17.93 | P8: -15.93 | S8: 1.31 | T8: 0.84 | U8: -18.615 | V8: -16.19 | W8: -16.19 | X8: -15.89 | Z8: -15.915 | AA8: -15.69 | AD8: -16
A9: Format2 | B9: AWGN | C9: 118 | D9: 204 | E9: 10 | F9: 1x2 | H9: 1% miss detection | I9: -16.04 | J9: -14.04 | K9: -16.91 | L9: -14.41 | M9: -17 | N9: -13.8 | O9: -16.14 | P9: -14.14 | S9: 0.96 | T9: 0.61 | U9: -16.5225 | V9: -14.0975 | W9: -14.0975 | X9: -13.7975 | Z9: -13.8 | AA9: -13.5975 | AD9: -13.8
A10: Format2 | B10: AWGN | C10: 118 | D10: 204 | E10: 10 | F10: 1x4 | H10: 1% miss detection | I10: -18.34 | J10: -16.34 | K10: -19.22 | L10: -16.72 | M10: -19.2 | N10: -16 | O10: -18.79 | P10: -16.76 | S10: 0.88 | T10: 0.76 | U10: -18.8875 | V10: -16.455 | W10: -16.455 | X10: -16.155 | Z10: N/A | AA10: -15.955 | AD10: -15.9
A11: Format2 | B11: AWGN | C11: 118 | D11: 204 | E11: 10 | F11: 1x8 | H11: 1% miss detection | I11: -20.49 | J11: -18.49 | K11: -21.2 | L11: -18.7 | M11: -21.6 | N11: -18 | O11: -20.86 | P11: -18.86 | S11: 1.11 | T11: 0.86 | U11: -21.0375 | V11: -18.5125 | W11: -18.5125 | X11: -18.2125 | Z11: -18 | AA11: -18.0125 | AD11: -18
A12: Format3 | B12: AWGN | C12: 137 | D12: 264 | E12: 0 | F12: 1x2 | H12: 1% miss detection | I12: -16.04 | J12: -14.04 | K12: -17.15 | L12: -14.65 | M12: -16.8 | N12: -14.1 | O12: -16.45 | P12: -14.45 | S12: 1.11 | T12: 0.61 | U12: -16.61 | V12: -14.31 | W12: -14.31 | X12: -14.01 | Z12: N/A | AA12: -13.81 | AD12: -14
A13: Format3 | B13: AWGN | C13: 137 | D13: 264 | E13: 0 | F13: 1x4 | H13: 1% miss detection | I13: -18.32 | J13: -16.32 | K13: -19.42 | L13: -16.92 | M13: -19 | N13: -16.4 | O13: -18.86 | P13: -16.86 | S13: 1.1 | T13: 0.6 | U13: -18.9 | V13: -16.625 | W13: -16.625 | X13: -16.325 | Z13: N/A | AA13: -16.125 | AD13: -16.3
A14: Format3 | B14: AWGN | C14: 137 | D14: 264 | E14: 0 | F14: 1x8 | H14: 1% miss detection | I14: -20.49 | J14: -18.49 | K14: -21.54 | L14: -19.04 | M14: -21.6 | N14: -18.4 | O14: -21.03 | P14: -19.03 | S14: 1.11 | T14: 0.64 | U14: -21.165 | V14: -18.74 | W14: -18.74 | X14: -18.44 | Z14: -18.4 | AA14: -18.24 | AD14: -18.4
